lending/lending_fUSD_20250429
["ID","MTS","AMOUNT","RATE_DAILY","PERIOD"]
[359285495,1745892651336,-470.0,0.00027671,2]
[359285496,1745892651346,-470.0,0.00027671,2]
[359285497,1745892651356,-470.0,0.00027671,2]
[359285498,1745892651365,-470.0,0.00027671,2]
[359285499,1745892651375,-470.0,0.00027671,2]
[359285500,1745892651384,-827.21,0.00027671,2]
[359285501,1745892651394,-515.83,0.00027671,2]
[359285502,1745892651404,-470.0,0.00027671,2]
[359285503,1745892651413,-470.0,0.00027671,2]
[359285504,1745892651423,-470.0,0.00027671,2]
[359285505,1745892651432,-542.57,0.00027671,2]
[359285506,1745892651442,-591.0,0.00027671,2]
[359285507,1745892651451,-470.0,0.00027671,2]
[359285508,1745892651461,-470.0,0.00027671,2]
[359285509,1745892651471,-470.0,0.00027671,2]
[359285510,1745892651480,-470.0,0.00027671,2]
[359285511,1745892651490,-470.0,0.00027671,2]
[359285512,1745892651499,-290.47,0.00027671,2]
[359285513,1745892651509,-498.65095901,0.00027671,2]
[359285514,1745892651518,-470.0,0.00027671,2]
[359285515,1745892651527,-470.0,0.00027671,2]
[359285516,1745892651537,-470.0,0.00027671,2]
[359285517,1745892651546,-470.0,0.00027671,2]
[359285518,1745892651555,-470.0,0.00027671,2]
[359285519,1745892651565,-470.0,0.00027671,2]
[359285520,1745892651574,-470.0,0.00027671,2]
[359285521,1745892651584,-625.99,0.00027671,2]
[359285522,1745892651593,-470.0,0.00027671,2]
[359285523,1745892651602,-337.28831432,0.00027671,2]
[359285524,1745892651612,-470.0,0.00027671,2]
[359285525,1745892651621,-501.93,0.00027671,2]
[359285526,1745892651630,-470.0,0.00027671,2]
[359285527,1745892651639,-470.0,0.00027671,2]
[359285528,1745892651649,-475.97,0.00027671,2]
[359285529,1745892651658,-470.0,0.00027671,2]
[359285530,1745892651667,-707.65,0.00027671,2]
[359285531,1745892651677,-470.0,0.00027671,2]
[359285532,1745892651686,-873.08,0.00027671,2]
[359285533,1745892651695,-651.16,0.00027671,2]
[359285534,1745892651706,-470.0,0.00027671,2]
[359285535,1745892651715,-567.73,0.00027671,2]
[359285536,1745892651725,-685.95,0.00027671,2]
[359285537,1745892651734,-494.15,0.00027671,2]
[359285538,1745892651743,-470.0,0.00027671,2]
[359285539,1745892651752,-470.0,0.00027671,2]
[359285540,1745892651762,-470.0,0.00027671,2]
[359285541,1745892651772,-470.0,0.00027671,2]
[359285542,1745892651781,-470.0,0.00027671,2]
[359285543,1745892651791,-470.0,0.00027671,2]
[359285544,1745892651800,-470.0,0.00027671,2]
[359285545,1745892651811,-470.0,0.00027671,2]
[359285546,1745892651822,-885.86,0.00027671,2]
[359285547,1745892651833,-470.0,0.00027671,2]
[359285548,1745892651845,-470.0,0.00027671,2]
[359285549,1745892651854,-1436.98,0.00027671,2]
[359285550,1745892651865,-800.77,0.00027671,2]
[359285551,1745892651875,-470.0,0.00027671,2]
[359285552,1745892651885,-470.0,0.00027671,2]
[359285553,1745892651895,-470.0,0.00027671,2]
[359285554,1745892651904,-470.0,0.00027671,2]
[359285555,1745892651914,-470.0,0.00027671,2]
[359285556,1745892651924,-470.0,0.00027671,2]
[359285557,1745892651933,-708.67,0.00027671,2]
[359285558,1745892651943,-470.0,0.00027671,2]
[359285559,1745892651953,-470.0,0.00027671,2]
[359285560,1745892651962,-470.0,0.00027671,2]
[359285561,1745892651974,-470.0,0.00027671,2]
[359285562,1745892651984,-470.0,0.00027671,2]
[359285563,1745892651996,-470.0,0.00027671,2]
[359285564,1745892652006,-470.0,0.00027671,2]
[359285565,1745892652017,-1982.19,0.00027671,2]
[359285566,1745892652027,-470.0,0.00027671,2]
[359285567,1745892652038,-430.0,0.00027671,2]
[359285568,1745892652048,-470.0,0.00027671,2]
[359285569,1745892652059,-470.0,0.00027671,2]
[359285570,1745892652069,-470.0,0.00027671,2]
[359285571,1745892652079,-470.0,0.00027671,2]
[359285572,1745892652094,-470.0,0.00027671,2]
[359285573,1745892652105,-470.0,0.00027671,2]
[359285574,1745892652117,-470.0,0.00027671,2]
[359285575,1745892652127,-507.16,0.00027671,2]
[359285576,1745892652136,-470.0,0.00027671,2]
[359285577,1745892652148,-470.0,0.00027671,2]
[359285578,1745892652159,-470.0,0.00027671,2]
[359285579,1745892652168,-557.83,0.00027671,2]
[359285580,1745892652178,-514.13,0.00027671,2]
[359285581,1745892652187,-470.0,0.00027671,2]
[359285582,1745892652197,-765.06,0.00027671,2]
[359285583,1745892652206,-470.0,0.00027671,2]
[359285584,1745892652215,-470.0,0.00027671,2]
[359285585,1745892652225,-470.0,0.00027671,2]
[359285586,1745892652235,-470.0,0.00027671,2]
[359285587,1745892652244,-470.0,0.00027671,2]
[359285588,1745892652254,-470.0,0.00027671,2]
[359285589,1745892652264,-635.76,0.00027671,2]
[359285590,1745892652273,-470.0,0.00027671,2]
[359285591,1745892652283,-470.0,0.00027671,2]
[359285592,1745892652293,-539.67522422,0.00027671,2]
[359285593,1745892652302,-470.0,0.00027671,2]
[359285594,1745892652311,-470.0,0.00027671,2]
[359285595,1745892652321,-470.0,0.00027671,2]
[359285596,1745892652331,-470.0,0.00027671,2]
[359285597,1745892652340,-470.0,0.00027671,2]
[359285598,1745892652350,-702.71,0.00027671,2]
[359285599,1745892652359,-470.0,0.00027671,2]
[359285600,1745892652369,-470.0,0.00027671,2]
[359285601,1745892652378,-470.0,0.00027671,2]
[359285602,1745892652388,-593.25,0.00027671,2]
[359285603,1745892652397,-470.0,0.00027671,2]
[359285604,1745892652407,-705.91,0.00027671,2]
[359285605,1745892652417,-470.0,0.00027671,2]
[359285606,1745892652426,-237.06471516,0.00027671,2]
[359285607,1745892653080,563.58,0.00038356,30]
[359285608,1745892653208,470.0,0.00038356,30]
[359285609,1745892653459,470.0,0.00038356,30]
[359285610,1745892653708,470.0,0.00038356,30]
[359285611,1745892653739,728.79,0.00038356,30]
[359285612,1745892653826,470.0,0.00038356,30]
[359285613,1745892654095,470.0,0.00038356,30]
[359285614,1745892654363,562.81,0.00038356,30]
[359285615,1745892654584,470.0,0.00038356,30]
[359285616,1745892654881,609.62,0.00038356,30]
[359285617,1745892654929,470.0,0.00038356,30]
[359285618,1745892655192,470.0,0.00038356,30]
[359285619,1745892657246,470.0,0.00038356,30]
[359285620,1745892657453,470.0,0.00038356,30]
[359285621,1745892657640,1014.32,0.00038356,30]
[359285622,1745892658198,470.0,0.00038356,30]
[359285623,1745892658234,470.0,0.00038356,30]
[359285624,1745892658484,622.24,0.00038356,30]
[359285625,1745892658694,470.0,0.00038356,30]
[359285626,1745892658893,536.59,0.00038356,30]
[359285627,1745892660023,470.0,0.00038356,30]
[359285628,1745892661145,859.91,0.00038356,30]
[359285629,1745892662565,478.26,0.00038356,30]
[359285630,1745892663407,470.0,0.00038356,30]
[359285631,1745892663442,470.0,0.00038356,30]
[359285632,1745892664832,593.41,0.00038356,30]
[359285633,1745892665086,470.0,0.00038356,30]
[359285634,1745892665123,470.0,0.00038356,30]
[359285635,1745892665795,470.0,0.00038356,30]
[359285636,1745892666136,470.0,0.00038356,30]
[359285637,1745892666628,470.0,0.00038356,30]
[359285638,1745892671003,470.0,0.00038356,30]
[359285639,1745892671251,470.0,0.00038356,30]
[359285640,1745892671637,470.0,0.00038356,30]
[359285641,1745892671688,585.73,0.00038356,30]
[359285642,1745892673786,470.0,0.00038356,30]
[359285643,1745892674360,500.0,0.00038356,30]
[359285644,1745892674392,470.0,0.00038356,30]
[359285645,1745892674526,470.0,0.00038356,30]
[359285646,1745892674636,330.66711781,0.00038356,30]
[359285647,1745892674700,500.0,0.00038356,30]
[359285648,1745892674936,500.0,0.00038356,30]
[359285649,1745892675177,500.0,0.00038356,30]
[359285650,1745892675420,500.0,0.00038356,30]
[359285651,1745892675674,500.0,0.00038356,30]
[359285652,1745892675910,500.0,0.00038356,30]
[359285653,1745892676208,500.0,0.00038356,30]
[359285654,1745892676452,470.0,0.00038356,30]
[359285655,1745892677403,470.0,0.00038356,30]
[359285656,1745892678737,629.17,0.00038356,30]
[359285657,1745892678769,975.0,0.00038356,30]
[359285658,1745892679172,498.02,0.00038356,30]
[359285659,1745892679530,470.0,0.00038356,30]
[359285660,1745892679733,470.0,0.00038356,30]
[359285661,1745892679839,500.0,0.00038356,30]
[359285662,1745892680110,500.0,0.00038356,30]
[359285663,1745892680334,1913.66,0.00038356,30]
[359285664,1745892680366,500.0,0.00038356,30]
[359285665,1745892680586,500.0,0.00038356,30]
[359285666,1745892680826,500.0,0.00038356,30]
[359285667,1745892681087,500.0,0.00038356,30]
[359285668,1745892681335,500.0,0.00038356,30]
[359285669,1745892681587,500.0,0.00038356,30]
[359285670,1745892681900,404.1139434,0.00038356,30]
[359285671,1745892682692,470.0,0.00038356,30]
[359285672,1745892684166,684.61,0.00038356,30]
[359285673,1745892684605,470.0,0.00038356,30]
[359285674,1745892687104,470.0,0.00038356,30]
[359285675,1745892687283,541.75,0.00038356,30]
[359285676,1745892688820,470.0,0.00038356,30]
[359285677,1745892689242,505.16,0.00038356,30]
[359285678,1745892689462,470.0,0.00038356,30]
[359285679,1745892692351,526.44,0.00038356,30]
[359285680,1745892692438,500.0,0.00038356,30]
[359285681,1745892692744,500.0,0.00038356,30]
[359285682,1745892692998,500.0,0.00038356,30]
[359285683,1745892693067,470.0,0.00038356,30]
[359285684,1745892693216,578.33,0.00038356,30]
[359285685,1745892693321,437.97038353,0.00038356,30]
[359285686,1745892694801,300.0,0.00038356,30]
[359285687,1745892695333,470.0,0.00038356,30]
[359285688,1745892696799,548.51,0.00038356,30]
[359285689,1745892696849,470.0,0.00038356,30]
[359285690,1745892697338,470.0,0.00038356,30]
[359285691,1745892697680,470.0,0.00038356,30]
[359285692,1745892698028,566.95,0.00038356,30]
[359285693,1745892699338,752.03,0.00038356,30]
[359285694,1745892702940,501.12,0.00038356,30]
[359285695,1745892703077,470.0,0.00038356,30]
[359285696,1745892704458,470.0,0.00038356,30]
[359285697,1745892705862,470.0,0.00038356,30]
[359285698,1745892705926,470.0,0.00038356,30]
[359285699,1745892706804,470.0,0.00038356,30]
[359285700,1745892708567,1133.83,0.00038356,30]
[359285701,1745892708974,470.0,0.00038356,30]
[359285702,1745892711975,470.0,0.00038356,30]
[359285703,1745892712814,470.0,0.00038356,30]
[359285704,1745892712842,470.0,0.00038356,30]
[359285705,1745892713187,470.0,0.00038356,30]
[359285706,1745892713216,508.04,0.00038356,30]
[359285707,1745892714011,1793.0,0.00038356,30]
[359285708,1745892715532,470.0,0.00038356,30]
[359285709,1745892715565,1392.83,0.00038356,30]
[359285710,1745892715687,470.0,0.00038356,30]
[359285711,1745892715941,701.31,0.00038356,30]
[359285712,1745892716949,518.68,0.00038356,30]
[359285713,1745892717623,1259.0,0.0002,10]
[359285714,1745892718565,470.0,0.00038356,30]
[359285715,1745892719031,470.0,0.00038356,30]
[359285716,1745892720388,470.0,0.00038356,30]
[359285717,1745892720912,470.0,0.00038356,30]
[359285718,1745892721785,200.0,0.00029584,117]
[359285719,1745892721874,200.0,0.00027146,117]
[359285720,1745892721905,470.0,0.00038356,30]
[359285721,1745892721935,512.21,0.00038356,30]
[359285722,1745892722667,470.0,0.00038356,30]
[359285723,1745892723205,470.0,0.00038356,30]
[359285724,1745892723641,470.0,0.00038356,30]
[359285725,1745892724933,470.0,0.00038356,30]
[359285726,1745892725493,574.09,0.00038356,30]
[359285727,1745892726075,4070.17,0.00038356,30]
[359285728,1745892726501,470.0,0.00038356,30]
[359285729,1745892727732,470.0,0.00038356,30]
[359285730,1745892728929,470.0,0.00038356,30]
[359285731,1745892730051,470.0,0.00038356,30]
[359285732,1745892730129,511.34,0.00038356,30]
[359285733,1745892730234,470.0,0.00038356,30]
[359285734,1745892730321,470.0,0.00038356,30]
[359285735,1745892731513,470.0,0.00038356,30]
[359285736,1745892734104,470.0,0.00038356,30]
[359285737,1745892734170,470.0,0.00038356,30]
[359285738,1745892734836,981.14,0.00038356,30]
[359285739,1745892735056,470.0,0.00038356,30]
[359285740,1745892735570,664.89,0.00038356,30]
[359285741,1745892735628,470.0,0.00038356,30]
[359285742,1745892735719,470.0,0.00038356,30]
[359285743,1745892738637,582.78,0.00038356,30]
[359285744,1745892739718,952.15,0.00038356,30]
[359285745,1745892741235,470.0,0.00038356,30]
[359285746,1745892742551,521.3,0.00038356,30]
[359285747,1745892743235,470.0,0.00038356,30]
[359285748,1745892743779,470.0,0.00038356,30]
[359285749,1745892743851,875.33,0.00038356,30]
[359285750,1745892744456,470.0,0.00038356,30]
[359285751,1745892745343,470.0,0.00038356,30]
[359285752,1745892745434,637.01,0.00038356,30]
[359285753,1745892747218,470.0,0.00038356,30]
[359285754,1745892747310,679.58,0.00038356,30]
[359285755,1745892747965,2428.57,0.00038356,30]
[359285756,1745892748464,470.0,0.00038356,30]
[359285757,1745892748785,496.12,0.00038356,30]
[359285758,1745892749488,470.0,0.00038356,30]
[359285759,1745892749845,470.0,0.00038356,30]
[359285760,1745892750191,470.0,0.00038356,30]
[359285761,1745892751441,508.24,0.00038356,30]
[359285762,1745892751984,470.0,0.00038356,30]
[359285763,1745892752325,1885.43,0.00038356,30]
[359285764,1745892753395,549.67,0.00038356,30]
[359285765,1745892755047,470.0,0.00038356,30]
[359285766,1745892755390,3178.04,0.00038356,30]
[359285767,1745892756494,470.0,0.00038356,30]
[359285768,1745892756694,470.0,0.00038356,30]
[359285769,1745892758307,641.26968745,0.00038356,30]
[359285770,1745892758931,470.0,0.00038356,30]
[359285771,1745892758994,470.0,0.00038356,30]
[359285772,1745892759022,480.08,0.00038356,30]
[359285773,1745892759748,470.0,0.00038356,30]
[359285774,1745892760063,470.0,0.00038356,30]
[359285775,1745892760647,470.0,0.00038356,30]
[359285776,1745892760721,470.0,0.00038356,30]
[359285777,1745892761016,1083.71,0.00038356,30]
[359285778,1745892761210,480.77,0.00038356,30]
[359285779,1745892761463,647.09,0.00038356,30]
[359285780,1745892762202,644.15,0.00038356,30]
[359285781,1745892765607,470.0,0.00038356,30]
[359285782,1745892765972,470.0,0.00038356,30]
[359285783,1745892766186,470.0,0.00038356,30]
[359285784,1745892767003,470.0,0.00038356,30]
[359285785,1745892767378,470.0,0.00038356,30]
[359285786,1745892767803,576.07,0.00038356,30]
[359285787,1745892767835,1290.57,0.00038356,30]
[359285788,1745892768847,470.0,0.00038356,30]
[359285789,1745892769536,1010.79,0.00038356,30]
[359285790,1745892770846,470.0,0.00038356,30]
[359285791,1745892771665,470.0,0.00038356,30]
[359285792,1745892773264,470.0,0.00038356,30]
[359285793,1745892773449,470.0,0.00038356,30]
[359285794,1745892774667,501.13,0.00038356,30]
[359285795,1745892774763,470.0,0.00038356,30]
[359285796,1745892774801,470.0,0.00038356,30]
[359285797,1745892775122,470.0,0.00038356,30]
[359285798,1745892776108,846.77,0.00038356,30]
[359285799,1745892776463,541.12,0.00038356,30]
[359285800,1745892777034,728.62,0.00038356,30]
[359285801,1745892778222,470.0,0.00038356,30]
[359285802,1745892778263,550.36,0.00038356,30]
[359285803,1745892779645,470.0,0.00038356,30]
[359285804,1745892779878,662.58,0.00038356,30]
[359285805,1745892780387,470.0,0.00038356,30]
[359285806,1745892780514,470.0,0.00038356,30]
[359285807,1745892782004,516.68,0.00038356,30]
[359285808,1745892783077,470.0,0.00038356,30]
[359285809,1745892783281,2941.77,0.00038356,30]
[359285810,1745892784332,547.41,0.00038356,30]
[359285811,1745892784608,470.0,0.00038356,30]
[359285812,1745892784954,470.0,0.00038356,30]
[359285813,1745892785732,261.1,0.00038,30]
[359285814,1745892786241,470.0,0.00038356,30]
[359285815,1745892786349,470.0,0.00038356,30]
[359285816,1745892786397,470.0,0.00038356,30]
[359285817,1745892786530,470.0,0.00038356,30]
[359285818,1745892786579,470.0,0.00038356,30]
[359285819,1745892788983,470.0,0.00038356,30]
[359285820,1745892789390,470.0,0.00038356,30]
[359285821,1745892790406,470.0,0.00038356,30]
[359285822,1745892791726,779.61,0.00038356,30]
[359285823,1745892792729,470.0,0.00038356,30]
[359285824,1745892793019,470.0,0.00038356,30]
[359285825,1745892793134,470.0,0.00038356,30]
[359285826,1745892793722,470.0,0.00038356,30]
[359285827,1745892793881,473.54,0.00038356,30]
[359285828,1745892794727,470.0,0.00038356,30]
[359285829,1745892796572,637.21,0.00038356,30]
[359285830,1745892797051,524.12,0.00038356,30]
[359285831,1745892800427,825.65,0.00038356,30]
[359285832,1745892800584,569.68,0.00038356,30]
[359285833,1745892800636,1676.18,0.00038356,30]
[359285834,1745892800669,2183.15,0.00038356,30]
[359285835,1745892800704,470.0,0.00038356,30]
[359285836,1745892802565,470.0,0.00038356,30]
[359285837,1745892804290,470.0,0.00038356,30]
[359285838,1745892805234,470.0,0.00038356,30]
[359285839,1745892805915,470.0,0.00038356,30]
[359285840,1745892806619,470.0,0.00038356,30]
[359285841,1745892807263,470.0,0.00038356,30]
[359285842,1745892808745,650.32,0.00038356,30]
[359285843,1745892809854,502.71,0.00038356,30]
[359285844,1745892810175,470.0,0.00038356,30]
[359285845,1745892810346,1087.9,0.00038356,30]
[359285846,1745892811840,470.0,0.00038356,30]
[359285847,1745892812001,470.0,0.00038356,30]
[359285848,1745892812359,470.0,0.00038356,30]
[359285849,1745892812764,470.0,0.00038356,30]
[359285850,1745892816291,1233.06,0.00038356,30]
[359285851,1745892816700,566.35,0.00038356,30]
[359285852,1745892817257,577.77,0.00038356,30]
[359285853,1745892817644,470.0,0.00038356,30]
[359285854,1745892817920,837.97,0.00038356,30]
[359285855,1745892817954,470.0,0.00038356,30]
[359285856,1745892819908,470.0,0.00038356,30]
[359285857,1745892820245,634.8,0.00038356,30]
[359285858,1745892820807,470.0,0.00038356,30]
[359285859,1745892820837,554.06,0.00038356,30]
[359285860,1745892822279,470.0,0.00038356,30]
[359285861,1745892823112,470.0,0.00038356,30]
[359285862,1745892823739,670.68,0.00038356,30]
[359285863,1745892824426,470.0,0.00038356,30]
[359285864,1745892825590,600.0,0.00038356,30]
[359285865,1745892825848,470.0,0.00038356,30]
[359285866,1745892826598,470.0,0.00038356,30]
[359285867,1745892828294,486.38,0.00038356,30]
[359285868,1745892829055,470.0,0.00038356,30]
[359285869,1745892829351,523.49,0.00038356,30]
[359285870,1745892829563,470.0,0.00038356,30]
[359285871,1745892830671,470.0,0.00038356,30]
[359285872,1745892830704,470.0,0.00038356,30]
[359285873,1745892830811,470.0,0.00038356,30]
[359285874,1745892831661,470.0,0.00038356,30]
[359285875,1745892832579,470.0,0.00038356,30]
[359285876,1745892832874,470.0,0.00038356,30]
[359285877,1745892833508,470.0,0.00038356,30]
[359285878,1745892833807,470.0,0.00038356,30]
[359285879,1745892834126,585.34,0.00038356,30]
[359285880,1745892834181,585.34,0.00038356,30]
[359285881,1745892834735,585.34,0.00038356,30]
[359285882,1745892834995,585.34,0.00038356,30]
[359285883,1745892835248,585.34,0.00038356,30]
[359285884,1745892835503,585.34,0.00038356,30]
[359285885,1745892835633,470.0,0.00038356,30]
[359285886,1745892835751,585.34,0.00038356,30]
[359285887,1745892835998,585.34,0.00038356,30]
[359285888,1745892836291,585.34,0.00038356,30]
[359285889,1745892836365,470.0,0.00038356,30]
[359285890,1745892836529,585.34,0.00038356,30]
[359285891,1745892836774,470.0,0.00038356,30]
[359285892,1745892836803,585.34,0.00038356,30]
[359285893,1745892836845,470.0,0.00038356,30]
[359285894,1745892837036,585.34,0.00038356,30]
[359285895,1745892837291,585.34,0.00038356,30]
[359285896,1745892837331,470.0,0.00038356,30]
[359285897,1745892837752,585.34,0.00038356,30]
[359285898,1745892837947,585.34,0.00038356,30]
[359285899,1745892838247,532.15,0.00038356,30]
[359285900,1745892838317,585.34,0.00038356,30]
[359285901,1745892838572,585.34,0.00038356,30]
[359285902,1745892838809,585.34,0.00038356,30]
[359285903,1745892839154,470.0,0.00038356,30]
[359285904,1745892839411,585.34,0.00038356,30]
[359285905,1745892839575,564.23,0.00038356,30]
[359285906,1745892840008,585.34,0.00038356,30]
[359285907,1745892840557,585.34,0.00038356,30]
[359285908,1745892840596,820.13,0.00038356,30]
[359285909,1745892840635,585.34,0.00038356,30]
[359285910,1745892840730,585.34,0.00038356,30]
[359285911,1745892841020,585.36477311,0.00038356,30]
[359285912,1745892841707,470.0,0.00038356,30]
[359285913,1745892843290,7220.86,0.00038356,30]
[359285914,1745892843346,470.0,0.00038356,30]
[359285915,1745892843821,719.66,0.00038356,30]
[359285916,1745892843961,470.0,0.00038356,30]
[359285917,1745892844477,551.91006085,0.00038356,30]
[359285918,1745892845978,470.0,0.00038356,30]
[359285919,1745892846825,612.27,0.00038356,30]
[359285920,1745892847328,470.0,0.00038356,30]
[359285921,1745892848360,470.0,0.00038356,30]
[359285922,1745892848915,617.12,0.00038356,30]
[359285923,1745892851023,216.91339736,0.00038356,30]
[359285924,1745892851151,433.05,0.00038356,30]
[359285925,1745892852221,470.0,0.00038356,30]
[359285926,1745892853118,555.57,0.00038356,30]
[359285927,1745892853157,470.0,0.00038356,30]
[359285928,1745892853228,470.0,0.00038356,30]
[359285929,1745892853646,470.0,0.00038356,30]
[359285930,1745892854082,470.0,0.00038356,30]
[359285931,1745892854127,47583.18,0.00038356,30]
[359285932,1745892854853,470.0,0.00038356,30]
[359285933,1745892856280,470.0,0.00038356,30]
[359285934,1745892856900,882.71,0.00038356,30]
[359285935,1745892858574,883.53,0.00038356,30]
[359285936,1745892858832,470.0,0.00038356,30]
[359285937,1745892858862,600.0,0.00038356,30]
[359285938,1745892859709,470.0,0.00038356,30]
[359285939,1745892859984,650.34,0.00038356,30]
[359285940,1745892861406,470.0,0.00038356,30]
[359285941,1745892861699,470.0,0.00038356,30]
[359285942,1745892861731,470.0,0.00038356,30]
[359285943,1745892862256,470.0,0.00038356,30]
[359285944,1745892862536,698.42,0.00038356,30]
[359285945,1745892862796,470.0,0.00038356,30]
[359285946,1745892864067,470.0,0.00038356,30]
[359285947,1745892865156,470.0,0.00038356,30]
[359285948,1745892865421,441.66418963,0.00038356,30]
[359285949,1745892866269,470.0,0.00038356,30]
[359285950,1745892866445,470.0,0.00038356,30]
[359285951,1745892866642,1221.6,0.00038356,30]
[359285952,1745892867318,470.0,0.00038356,30]
[359285953,1745892868611,895.27,0.00038356,30]
[359285954,1745892869186,594.11,0.00038356,30]
[359285955,1745892870962,470.0,0.00038356,30]
[359285956,1745892871764,500.0,0.00038356,30]
[359285957,1745892872066,470.0,0.00038356,30]
[359285958,1745892872500,4557.68,0.00038356,30]
[359285959,1745892872565,470.0,0.00038356,30]
[359285960,1745892872807,470.0,0.00038356,30]
[359285961,1745892872879,692.35,0.00038356,30]
[359285962,1745892874013,470.0,0.00038356,30]
[359285963,1745892875494,470.0,0.00038356,30]
[359285964,1745892876333,519.17,0.00038356,30]
[359285965,1745892876634,470.0,0.00038356,30]
[359285966,1745892877410,470.0,0.00038356,30]
[359285967,1745892877534,470.0,0.00038356,30]
[359285968,1745892878323,568.69,0.00038356,30]
[359285969,1745892878493,470.0,0.00038356,30]
[359285970,1745892878973,470.0,0.00038356,30]
[359285971,1745892879280,470.0,0.00038356,30]
[359285972,1745892880514,470.0,0.00038356,30]
[359285973,1745892880903,548.76,0.00038356,30]
[359285974,1745892881005,3809.34,0.00038356,30]
[359285975,1745892882145,470.0,0.00038356,30]
[359285976,1745892882211,470.0,0.00038356,30]
[359285977,1745892882240,470.0,0.00038356,30]
[359285978,1745892882691,193.01362666,0.00038356,30]
[359285979,1745892883280,470.0,0.00038356,30]
[359285980,1745892884613,470.0,0.00038356,30]
[359285981,1745892884681,470.0,0.00038356,30]
[359285982,1745892885305,470.0,0.00038356,30]
[359285983,1745892885394,470.0,0.00038356,30]
[359285984,1745892885456,697.69,0.00038356,30]
[359285985,1745892887307,470.0,0.00038356,30]
[359285986,1745892887622,607.03,0.00038356,30]
[359285987,1745892889292,1403.93,0.00038356,30]
[359285988,1745892889626,470.0,0.00038356,30]
[359285989,1745892890427,656.09,0.00038356,30]
[359285990,1745892892491,470.0,0.00038356,30]
[359285991,1745892893393,470.0,0.00038356,30]
[359285992,1745892894421,470.0,0.00038356,30]
[359285993,1745892894611,470.0,0.00038356,30]
[359285994,1745892895345,470.0,0.00038356,30]